bitfinex/quotes_BTCUSD_20240902
["timestamp","ask_amount","ask_price","bid_price","bid_amount"]
[1725262724868,0.50475394,57592.0,57591.0,0.0909]
[1725262725306,0.26166494,57592.0,57591.0,0.0909]
[1725262725988,0.05234595,57610.0,57591.0,0.0909]
[1725262725989,0.121501,57613.0,57606.0,0.121514]
[1725262726220,0.50540786,57612.0,57608.0,0.0714]
[1725262726512,0.17702788,57622.0,57608.0,0.0714]
[1725262726733,0.121502,57613.0,57608.0,0.0714]
[1725262726989,0.121501,57613.0,57608.0,0.0714]
[1725262727223,0.121508,57609.0,57608.0,0.0714]
[1725262727446,0.364525,57609.0,57608.0,0.0714]
[1725262727682,0.121508,57609.0,57608.0,0.0714]
[1725262728131,0.220708,57609.0,57607.0,0.0947]
[1725262728350,0.22151,57608.0,57607.0,0.0947]
[1725262728569,0.1,57608.0,57607.0,0.216213]
[1725262728791,0.1,57608.0,57607.0,0.0947]
[1725262729065,0.1,57608.0,57607.0,0.216213]
[1725262729502,0.1,57614.0,57607.0,0.121513]
[1725262729725,0.1,57614.0,57601.0,0.121524]
[1725262729726,0.121514,57607.0,57601.0,0.121524]
[1725262729952,0.24301,57611.0,57602.0,0.121522]
[1725262729953,0.243023,57608.0,57602.0,0.121522]
[1725262730211,0.121515,57606.0,57602.0,0.121522]
[1725262730653,0.121515,57606.0,57598.0,0.0935]
[1725262730654,0.12152,57604.0,57599.0,0.121529]
[1725262730872,0.1,57605.0,57598.0,0.0935]
[1725262730873,0.121522,57603.0,57598.0,0.0935]
[1725262731088,0.121522,57603.0,57598.0,0.21503]
[1725262731776,0.121529,57599.0,57598.0,0.0935]
[1725262732422,0.121526,57601.0,57598.0,0.0935]
[1725262732645,0.121528,57600.0,57598.0,0.0935]
[1725262733333,0.121529,57599.0,57598.0,0.0935]
[1725262733552,0.121529,57599.0,57596.0,0.0735]
[1725262733553,0.121534,57597.0,57596.0,0.0735]
[1725262734208,0.121538,57595.0,57594.0,0.0943]
[1725262734419,0.364614,57595.0,57594.0,0.0943]
[1725262735358,0.121538,57595.0,57594.0,0.0943]
[1725262735787,0.121535,57597.0,57594.0,0.0943]
[1725262736015,0.343062,57599.0,57594.0,0.0943]
[1725262736016,0.121536,57596.0,57594.0,0.0943]
[1725262737576,0.121534,57597.0,57594.0,0.0943]
[1725262737791,0.02724608,57596.0,57594.0,0.0943]
[1725262738456,0.14878208,57596.0,57594.0,0.0943]
[1725262738671,0.02724608,57596.0,57594.0,0.0943]
[1725262739361,0.02724608,57596.0,57594.0,0.21584]
[1725262739596,0.02724608,57596.0,57594.0,0.215839]
[1725262739830,0.02724608,57596.0,57595.0,0.121538]
[1725262740927,0.05212369,57596.0,57592.0,0.0756]
[1725262741136,0.05212369,57596.0,57579.0,0.0732]
[1725262741137,0.121559,57585.0,57579.0,0.0732]
[1725262741364,0.14146875,57589.0,57584.0,0.121561]
[1725262741571,0.1,57588.0,57585.0,0.121559]
[1725262741821,0.1,57588.0,57579.0,0.1649]
[1725262742004,0.1,57588.0,57586.0,0.121557]
[1725262742239,0.1,57588.0,57582.0,0.243129]
[1725262742454,0.1,57588.0,57584.0,0.12156]
[1725262743551,0.1,57588.0,57582.0,0.243129]
[1725262743552,0.1,57588.0,57586.0,0.121557]
[1725262743761,0.38455175,57594.0,57584.0,0.0892]
[1725262743762,0.1,57590.0,57584.0,0.0892]
[1725262743989,0.243083,57594.0,57586.0,0.121556]
[1725262743990,0.121547,57591.0,57586.0,0.121556]
[1725262744192,0.1,57590.0,57586.0,0.121556]
[1725262744424,0.02724984,57589.0,57587.0,0.121554]
[1725262744869,0.02724984,57589.0,57588.0,0.121553]
[1725262745087,0.02724984,57589.0,57588.0,0.438559]
[1725262745757,0.02724984,57589.0,57588.0,0.531859]
[1725262746863,0.12154,57594.0,57589.0,0.12155]
[1725262747103,0.1,57593.0,57592.0,0.121544]
[1725262747349,0.1,57593.0,57592.0,0.457633]
[1725262747569,0.1,57593.0,57592.0,0.700722]
[1725262747813,0.1,57593.0,57592.0,0.457633]
[1725262748024,0.1,57593.0,57592.0,0.700722]
[1725262748243,0.121514,57607.0,57595.0,0.77349]
[1725262748483,0.243019,57609.0,57595.0,0.77349]
[1725262748702,0.121511,57608.0,57595.0,1.016566]
[1725262748937,0.243007,57612.0,57595.0,1.016566]
[1725262749622,0.121511,57608.0,57595.0,1.016566]
[1725262749854,0.242998,57614.0,57595.0,1.018566]
[1725262750076,0.121496,57615.0,57595.0,1.023566]
[1725262750312,0.74839486,57617.0,57595.0,1.023566]
[1725262750520,0.121496,57615.0,57595.0,1.023566]
[1725262750761,0.74839486,57617.0,57595.0,1.023566]
[1725262750762,0.50540786,57617.0,57595.0,1.266642]
[1725262750978,0.50540786,57617.0,57595.0,1.42217263]
[1725262751219,0.50540786,57617.0,57595.0,1.43217263]
[1725262751220,0.62690086,57617.0,57595.0,1.43217263]
[1725262751450,0.62690086,57617.0,57595.0,1.033566]
[1725262751451,0.74839486,57617.0,57595.0,1.033566]
[1725262751701,0.121501,57613.0,57607.0,0.121511]
[1725262751914,0.000817,57623.0,57608.0,0.0694]
[1725262752154,0.1215,57614.0,57610.0,0.121506]
[1725262752367,0.1215,57614.0,57608.0,0.0694]
[1725262752587,0.1,57613.0,57609.0,0.121507]
[1725262752808,0.1,57613.0,57610.0,0.0858]
[1725262753031,0.121494,57616.0,57611.0,0.121503]
[1725262753261,0.34298,57618.0,57610.0,0.0858]
[1725262753262,0.221496,57615.0,57610.0,0.207306]
[1725262753720,0.221496,57615.0,57613.0,0.121499]
[1725262753721,0.1,57615.0,57613.0,0.121499]
[1725262753934,0.1,57615.0,57614.0,0.121498]
[1725262754403,0.1,57618.0,57614.0,0.121497]
[1725262754686,0.221487,57619.0,57613.0,0.121498]
[1725262754907,0.221487,57619.0,57614.0,0.121498]
[1725262756042,0.121498,57614.0,57610.0,0.0858]
[1725262756279,0.1,57613.0,57611.0,0.121504]
[1725262756914,0.1,57613.0,57612.0,0.364506]
[1725262757353,0.1,57618.0,57612.0,0.121501]
[1725262757617,0.121493,57617.0,57612.0,0.121501]
[1725262757836,0.221494,57616.0,57610.0,0.0858]
[1725262758069,0.242992,57615.0,57610.0,0.0858]
[1725262758283,0.1,57614.0,57610.0,0.0858]
[1725262758514,0.243001,57613.0,57606.0,0.0943]
[1725262758739,0.121506,57611.0,57606.0,0.215814]
[1725262758982,0.121523,57602.0,57601.0,0.1672]
[1725262759428,0.1,57614.0,57601.0,0.1672]
[1725262759429,0.24303,57606.0,57601.0,0.1672]
[1725262759648,0.121519,57604.0,57601.0,0.1672]
[1725262759878,0.121523,57602.0,57601.0,0.1672]
[1725262760112,0.24305,57602.0,57597.0,0.1598]
[1725262760337,0.12153,57599.0,57597.0,0.1598]
[1725262760774,0.121531,57598.0,57597.0,0.1598]
[1725262761061,0.121536,57596.0,57595.0,0.0008987]
[1725262761282,0.364608,57596.0,57595.0,0.0008987]
[1725262761513,0.63492207,57596.0,57595.0,0.0008987]
[1725262761736,1.22743307,57596.0,57595.0,0.0008987]
[1725262765084,1.05179407,57596.0,57595.0,0.0008987]
[1725262765309,1.69509807,57596.0,57595.0,0.0008987]
[1725262765535,1.45886707,57596.0,57595.0,0.0008987]
[1725262765764,1.22266807,57596.0,57595.0,0.0008987]
[1725262765990,0.73492207,57596.0,57595.0,0.0008987]
[1725262766955,0.70768,57596.0,57595.0,0.0008987]
[1725262768970,0.464608,57596.0,57595.0,0.0008987]
[1725262769669,0.1,57596.0,57595.0,0.2835367]
[1725262769906,0.05134569,57603.0,57595.0,0.2835367]
[1725262769907,0.121525,57602.0,57596.0,0.121534]
[1725262770143,0.1,57601.0,57596.0,0.121534]
[1725262770371,0.243056,57600.0,57595.0,0.1619987]
[1725262770593,0.1,57599.0,57595.0,0.2835347]
[1725262770833,0.1,57599.0,57595.0,0.1619987]
[1725262771307,0.1,57599.0,57596.0,0.121535]
[1725262771759,0.02724372,57601.0,57596.0,0.243071]
[1725262771956,0.02724372,57601.0,57600.0,0.121527]
[1725262772456,0.02724372,57601.0,57600.0,0.213427]
[1725262773386,0.02724372,57601.0,57600.0,0.456482]
[1725262773871,0.02724372,57601.0,57600.0,0.767337]
[1725262774833,0.02724372,57601.0,57600.0,1.010392]
[1725262775062,0.02724372,57601.0,57600.0,1.12627564]
[1725262775304,0.02724372,57601.0,57600.0,1.13127564]
[1725262776940,0.121498,57614.0,57609.0,0.121507]
[1725262777166,0.1,57613.0,57604.0,0.243034]
[1725262777399,0.2215,57613.0,57608.0,0.12151]
[1725262777641,0.2215,57613.0,57609.0,0.121508]
[1725262777870,0.2215,57613.0,57600.0,0.402755]
[1725262777871,0.121514,57607.0,57603.0,0.121521]
[1725262778363,0.1,57606.0,57601.0,0.121524]
[1725262779109,0.1,57606.0,57602.0,0.121523]
[1725262780309,0.221516,57606.0,57600.0,0.524281]
[1725262780554,0.12723913,57606.0,57602.0,0.0008987]
[1725262780799,0.12723913,57606.0,57603.0,0.12152]
[1725262781040,0.02723913,57606.0,57603.0,0.12152]
[1725262781355,0.02723913,57606.0,57602.0,0.0008987]
[1725262781585,0.02723913,57606.0,57604.0,0.121517]
[1725262782506,0.02723913,57606.0,57605.0,0.364551]
[1725262782751,0.02723913,57606.0,57605.0,0.763885]
[1725262782981,0.02723913,57606.0,57605.0,1.006919]
[1725262785235,0.1,57617.0,57614.0,0.121498]
[1725262785460,0.1,57617.0,57615.0,0.1532]
[1725262785678,0.1,57617.0,57615.0,0.274696]
[1725262785900,0.000817,57618.0,57615.0,0.274696]
[1725262786156,0.000817,57618.0,57616.0,0.121493]
[1725262786366,0.000817,57618.0,57615.0,0.2049699]
[1725262787335,0.000817,57618.0,57615.0,0.1532]
[1725262787558,0.000817,57618.0,57615.0,0.274695]
[1725262787783,0.000817,57618.0,57611.0,0.121503]
[1725262788009,0.121492,57617.0,57613.0,0.121499]
[1725262788243,0.1,57616.0,57613.0,0.121499]
[1725262788491,0.1,57616.0,57614.0,0.121498]
[1725262788729,0.1,57616.0,57612.0,0.243003]
[1725262788730,0.1,57616.0,57615.0,0.121496]
[1725262789390,0.000817,57618.0,57615.0,0.121496]
[1725262789599,0.000817,57618.0,57612.0,0.243003]
[1725262789820,0.000817,57618.0,57615.0,0.121495]
[1725262790490,0.000817,57618.0,57617.0,0.519274]
[1725262791150,0.000817,57618.0,57617.0,0.762257]
[1725262791383,0.000817,57618.0,57617.0,1.00524]
[1725262791601,0.000817,57618.0,57617.0,1.01024]
[1725262791857,0.000817,57618.0,57617.0,1.01224]
[1725262792082,0.000817,57618.0,57617.0,1.01024]
[1725262792745,0.000817,57618.0,57617.0,1.12913553]
[1725262793169,0.000817,57618.0,57617.0,1.01024]
[1725262793620,0.02804523,57618.0,57617.0,1.01024]
[1725262794314,0.02804523,57618.0,57617.0,0.519274]
[1725262795228,0.02804523,57618.0,57617.0,0.762257]
[1725262796103,0.02804523,57618.0,57617.0,0.9389723]
[1725262796320,0.02804523,57618.0,57617.0,1.0579584]
[1725262796530,0.02804523,57618.0,57617.0,1.3059414]
[1725262796750,0.000817,57618.0,57617.0,1.3059414]
[1725262796975,0.000817,57618.0,57617.0,1.3009414]
[1725262797189,0.000817,57618.0,57617.0,1.00524]
[1725262797404,0.000817,57618.0,57615.0,0.0008987]
[1725262797856,0.121492,57617.0,57615.0,0.0008987]
[1725262798294,0.000817,57618.0,57615.0,0.1223927]
[1725262798509,0.378509,57617.0,57615.0,0.0008987]
[1725262798732,0.378509,57617.0,57616.0,0.121494]
[1725262798946,0.378509,57617.0,57616.0,0.364482]
[1725262799891,0.378509,57617.0,57616.0,0.121494]
[1725262800097,0.40574098,57617.0,57616.0,0.121494]
[1725262800316,0.40574098,57617.0,57615.0,0.0008987]
[1725262800542,0.40574098,57617.0,57615.0,0.1223937]
[1725262800789,0.0528046,57616.0,57615.0,0.0008987]
[1725262801048,1.6566576,57616.0,57615.0,0.0008987]
[1725262801271,1.9226456,57616.0,57615.0,0.0008987]
[1725262801529,1.9740752,57616.0,57615.0,0.0008987]
[1725262801763,1.9226456,57616.0,57615.0,0.0008987]
[1725262802956,1.99979,57616.0,57615.0,0.0008987]
[1725262803179,1.9226456,57616.0,57615.0,0.0008987]
[1725262803401,2.00665001,57616.0,57615.0,0.0008987]
[1725262803624,2.03250481,57616.0,57615.0,0.0008987]
[1725262803851,1.010847,57603.0,57595.0,0.0008987]
[1725262804080,2.01663489,57603.0,57595.0,0.0008987]
[1725262804553,2.30992233,57603.0,57595.0,0.0008987]
[1725262804792,1.99748833,57603.0,57595.0,0.0008987]
[1725262805240,1.58769333,57603.0,57595.0,0.0008987]
[1725262805684,1.46617233,57603.0,57595.0,0.0008987]
[1725262806123,1.61069333,57603.0,57595.0,0.0008987]
[1725262806363,1.30244533,57603.0,57595.0,0.0008987]
[1725262806613,2.74410542,57603.0,57595.0,0.0008987]
[1725262806855,2.36188233,57603.0,57595.0,0.0008987]
[1725262807110,1.75452133,57603.0,57595.0,0.0008987]
[1725262808297,0.90400933,57603.0,57595.0,0.0008987]
[1725262808529,0.243029,57607.0,57595.0,0.00437074]
[1725262808769,0.121518,57605.0,57599.0,0.121529]
[1725262808998,0.121521,57603.0,57595.0,0.00437074]
[1725262809488,0.12152,57604.0,57595.0,0.00437074]
[1725262809726,0.12152,57604.0,57599.0,0.121529]
[1725262809953,0.1,57603.0,57599.0,0.121529]
[1725262810201,0.221521,57603.0,57598.0,0.12153]
[1725262810667,0.221521,57603.0,57597.0,0.243065]
[1725262810890,0.1,57603.0,57599.0,0.121529]
[1725262811113,0.1,57604.0,57599.0,0.121529]
[1725262811337,0.1,57604.0,57600.0,0.243052]
[1725262811563,0.343014,57610.0,57601.0,0.121524]
[1725262811791,0.02724166,57604.0,57601.0,0.121524]
[1725262812493,0.02724166,57604.0,57600.0,0.121526]
[1725262812943,0.02724166,57604.0,57603.0,0.121521]
[1725262813175,0.02724166,57604.0,57603.0,0.210721]
[1725262813401,0.02724166,57604.0,57603.0,0.45723482]
[1725262813669,0.02724166,57604.0,57603.0,0.527863]
[1725262813894,0.02724166,57604.0,57603.0,0.82378117]
[1725262814377,0.02724166,57604.0,57603.0,1.06682317]
[1725262814840,0.02724166,57604.0,57603.0,1.015947]
[1725262815072,0.02724166,57604.0,57603.0,1.013947]
[1725262815772,0.02724166,57604.0,57603.0,1.015947]
[1725262816001,0.02724166,57604.0,57603.0,1.16229989]
[1725262816480,0.379326,57617.0,57616.0,0.526782]
[1725262816713,0.479326,57617.0,57616.0,0.76977]
[1725262817207,0.379326,57617.0,57616.0,0.76977]
[1725262817927,0.379326,57617.0,57616.0,0.526782]
[1725262818411,0.479326,57617.0,57616.0,0.526782]
[1725262819096,0.479326,57617.0,57616.0,0.76977]
[1725262819345,0.479326,57617.0,57616.0,0.526782]
[1725262820307,0.479326,57617.0,57616.0,0.76977]
[1725262821462,0.506559,57617.0,57616.0,0.76977]
[1725262823151,0.506559,57617.0,57611.0,0.0872]
[1725262823380,0.406559,57617.0,57611.0,0.0872]
[1725262823615,0.406559,57617.0,57613.0,0.243]
[1725262823857,0.406559,57617.0,57615.0,0.121495]
[1725262824327,0.406559,57617.0,57616.0,0.121494]
[1725262824576,0.406559,57617.0,57616.0,0.4009309]
[1725262824821,0.406559,57617.0,57616.0,0.60747]
[1725262825067,0.02805,57617.0,57614.0,0.242995]
[1725262825411,0.02805,57617.0,57612.0,0.243003]
[1725262825413,0.02805,57617.0,57614.0,0.121497]
[1725262825610,0.02805,57617.0,57616.0,0.364482]
[1725262825977,0.02805,57617.0,57616.0,0.121494]
[1725262826209,0.02805,57617.0,57615.0,0.121495]
[1725262826709,0.02805,57617.0,57616.0,0.121494]
[1725262826929,0.000817,57617.0,57616.0,0.121494]
[1725262827611,0.000817,57617.0,57609.0,0.0914]
[1725262827612,0.242989,57616.0,57605.0,0.0715]
[1725262827846,0.121498,57614.0,57608.0,0.12151]
[1725262828068,0.121498,57614.0,57605.0,0.0715]
[1725262828069,0.2215,57613.0,57609.0,0.00347132]
[1725262828294,0.2215,57613.0,57605.0,0.0715]
[1725262828295,0.1,57613.0,57608.0,0.00347135]
[1725262828535,0.1,57613.0,57605.0,0.0715]
[1725262828536,0.243005,57612.0,57605.0,0.0715]
[1725262828782,0.243005,57612.0,57607.0,0.121512]
[1725262828783,0.1,57611.0,57607.0,0.121512]
[1725262829013,0.1,57611.0,57609.0,0.121507]
[1725262829234,0.1,57611.0,57607.0,0.243023]
[1725262829235,0.1,57611.0,57610.0,0.121506]
[1725262829683,0.000817,57617.0,57614.0,0.121497]
[1725262830133,0.000817,57617.0,57613.0,0.121498]
[1725262830353,0.02805111,57617.0,57616.0,0.0749]
[1725262830576,0.02805111,57617.0,57616.0,0.196394]
[1725262830795,0.02805111,57617.0,57616.0,0.0749]
[1725262831268,0.12805111,57617.0,57612.0,0.313602]
[1725262831492,0.12805111,57617.0,57613.0,0.242999]
[1725262831493,0.14273358,57617.0,57613.0,0.242999]
[1725262831775,0.14273358,57617.0,57616.0,0.121494]
[1725262832462,0.04273358,57617.0,57616.0,0.121494]
[1725262832682,0.04273358,57617.0,57616.0,0.364482]
[1725262832926,0.04273358,57617.0,57616.0,0.452882]
[1725262833176,0.1,57623.0,57618.0,0.121488]
[1725262833638,0.02723164,57622.0,57618.0,0.121488]
[1725262834333,0.02723164,57622.0,57618.0,0.242977]
[1725262834549,0.02723164,57622.0,57617.0,0.0025]
[1725262834768,0.02723164,57622.0,57619.0,0.121487]
[1725262834993,0.02723164,57622.0,57618.0,0.121488]
[1725262835212,0.12723164,57622.0,57619.0,0.121486]
[1725262835427,0.02723164,57622.0,57619.0,0.121486]
[1725262835654,0.02723164,57622.0,57619.0,0.1670234]
[1725262835868,0.02723164,57622.0,57620.0,0.121485]
[1725262836087,0.02723164,57622.0,57621.0,0.121483]
[1725262837448,0.02723164,57622.0,57621.0,0.364449]
[1725262837619,0.02723164,57622.0,57621.0,0.121483]
[1725262837822,0.02723164,57622.0,57621.0,0.1249536]
[1725262838446,0.02723164,57622.0,57621.0,0.3679196]
[1725262839037,0.193861,57632.0,57626.0,0.242943]
[1725262839261,0.193861,57632.0,57621.0,0.62117176]
[1725262839262,0.121462,57631.0,57624.0,0.242953]
[1725262839492,0.121462,57631.0,57625.0,0.121474]
[1725262839937,0.121462,57631.0,57626.0,0.121472]
[1725262840136,0.221464,57630.0,57626.0,0.12494228]
[1725262840398,0.221464,57630.0,57626.0,0.121472]
[1725262841078,0.1,57630.0,57627.0,0.12147]
[1725262841990,0.1,57630.0,57629.0,0.121466]
[1725262842219,0.221459,57633.0,57629.0,0.121466]
[1725262842466,0.12146,57632.0,57627.0,0.207169]
[1725262842693,0.1,57631.0,57627.0,0.207169]
[1725262843422,0.1,57631.0,57628.0,0.0718]
[1725262843642,0.12722873,57631.0,57630.0,0.121464]
[1725262843886,0.242904,57636.0,57630.0,0.121464]
[1725262844106,0.19639484,57637.0,57630.0,0.1736544]
[1725262844107,0.121456,57634.0,57630.0,0.1736544]
[1725262844297,0.02722811,57631.0,57630.0,0.1736544]
[1725262844791,0.02722811,57631.0,57630.0,0.17712454]
[1725262845019,0.02722811,57631.0,57630.0,0.42005354]
[1725262846550,0.03958026,57631.0,57630.0,0.36786314]
[1725262846762,0.03958026,57631.0,57630.0,0.364393]
[1725262847194,0.02722811,57631.0,57630.0,0.364393]
[1725262847858,0.03958026,57631.0,57630.0,0.364393]
[1725262849872,0.01235215,57631.0,57630.0,0.364393]
[1725262850088,0.01235215,57631.0,57630.0,0.6838053]
[1725262850320,0.1,57637.0,57625.0,0.242948]
[1725262850575,0.121459,57633.0,57628.0,0.121466]
[1725262850788,0.22146,57632.0,57626.0,0.121471]
[1725262851040,0.31076,57632.0,57625.0,0.242948]
[1725262851265,0.31076,57632.0,57616.0,0.0108976]
[1725262851266,0.121478,57624.0,57616.0,0.0008976]
[1725262851493,0.121478,57624.0,57620.0,0.121485]
[1725262851708,0.01244382,57623.0,57620.0,0.121485]
[1725262851925,0.13392282,57623.0,57618.0,0.242979]
[1725262852178,0.01244382,57623.0,57619.0,0.121486]
[1725262852374,0.01244382,57623.0,57621.0,0.121482]
[1725262852601,0.12147,57628.0,57624.0,0.121475]
[1725262852825,0.242934,57629.0,57620.0,0.24297]
[1725262853065,0.02723079,57623.0,57622.0,0.12148]
[1725262855088,0.02723079,57623.0,57622.0,0.607404]
[1725262856233,0.02723079,57623.0,57622.0,0.699204]
[1725262856943,0.121464,57630.0,57625.0,0.121473]
[1725262857167,0.1,57629.0,57625.0,0.121473]
[1725262857803,0.1,57629.0,57622.0,0.577724]
[1725262857804,0.1,57629.0,57626.0,0.121472]
[1725262858476,0.1,57629.0,57624.0,0.121476]
[1725262858713,0.121477,57625.0,57621.0,0.0008976]
[1725262859389,0.121477,57624.0,57621.0,0.0008976]
[1725262859639,0.24295,57625.0,57621.0,0.0008976]
[1725262859866,0.364443,57622.0,57621.0,0.0008976]
[1725262860097,0.50579589,57622.0,57621.0,0.0008976]
[1725262860323,0.57669589,57622.0,57621.0,0.0008976]
[1725262860547,0.435343,57622.0,57621.0,0.0008976]
[1725262861693,0.121481,57622.0,57621.0,0.0008976]
[1725262861919,0.364433,57624.0,57621.0,0.0008976]
[1725262862145,0.121479,57623.0,57621.0,0.0008976]
[1725262862613,0.121475,57625.0,57621.0,0.0008976]
[1725262863057,0.02723051,57623.0,57621.0,0.0008976]
[1725262863512,0.02723051,57623.0,57621.0,0.15916546]
[1725262863513,0.01253879,57622.0,57621.0,0.15916546]
[1725262863732,0.01253879,57622.0,57621.0,0.1223796]
[1725262865270,0.01253879,57622.0,57621.0,0.3653456]
[1725262865508,0.01253879,57622.0,57621.0,0.4507456]
[1725262865984,0.01253879,57622.0,57621.0,0.7622116]
[1725262866473,0.1,57632.0,57629.0,0.121465]
[1725262866692,0.1,57632.0,57626.0,0.242945]
[1725262866917,0.1,57632.0,57628.0,0.121467]
[1725262867143,0.1,57632.0,57626.0,0.121472]
[1725262867388,0.121463,57631.0,57626.0,0.121472]
[1725262867644,0.221465,57630.0,57626.0,0.121472]
[1725262867875,0.36281789,57630.0,57626.0,0.121472]
[1725262868740,0.121473,57626.0,57621.0,0.1223796]
[1725262869431,0.121473,57626.0,57622.0,0.12148]
[1725262869651,0.121471,57627.0,57622.0,0.12148]
[1725262870108,0.121471,57627.0,57621.0,0.05408296]
[1725262870382,0.1,57630.0,57623.0,0.242958]
[1725262870610,0.221463,57631.0,57626.0,0.121472]
[1725262870878,0.221463,57631.0,57623.0,0.242958]
[1725262870879,0.242934,57629.0,57623.0,0.121478]
[1725262871123,0.121472,57626.0,57621.0,0.1223796]
[1725262871362,0.121474,57626.0,57621.0,0.0008976]
[1725262871655,0.121475,57625.0,57621.0,0.1223796]
[1725262871871,0.121475,57625.0,57621.0,0.0008976]
[1725262871872,0.121481,57622.0,57621.0,0.0008976]
[1725262872131,0.121478,57624.0,57621.0,0.0008976]
[1725262872407,0.12148,57623.0,57621.0,0.0008976]
[1725262873371,0.14870733,57624.0,57621.0,0.0008976]
[1725262875844,0.121479,57623.0,57621.0,0.05408436]
[1725262876064,0.121479,57623.0,57621.0,0.0008976]
[1725262877500,0.02723033,57624.0,57621.0,0.0008976]
[1725262877723,0.02723033,57624.0,57621.0,0.1223796]
[1725262877948,0.02723033,57624.0,57621.0,0.0008976]
[1725262878252,0.02723033,57624.0,57621.0,0.19986496]
[1725262878447,0.14870733,57624.0,57621.0,0.07838196]
[1725262878669,0.01030226,57623.0,57621.0,0.07838196]
[1725262878929,0.01030226,57623.0,57621.0,0.0008976]
[1725262879376,0.01030226,57623.0,57621.0,0.1223806]
[1725262879633,0.01030226,57623.0,57622.0,0.121481]
[1725262879877,0.01030226,57623.0,57621.0,0.0008976]
[1725262880155,0.01030226,57623.0,57622.0,0.36791354]
[1725262880386,0.01030226,57623.0,57622.0,0.364443]
[1725262880653,0.1,57627.0,57625.0,0.121474]
[1725262880891,0.221467,57629.0,57625.0,0.121474]
[1725262881385,0.1,57629.0,57626.0,0.00347038]
[1725262881651,0.1,57629.0,57628.0,0.121468]
[1725262881894,0.05159826,57631.0,57628.0,0.121468]
[1725262882612,0.05159826,57631.0,57627.0,0.1642]
[1725262882859,0.05159826,57631.0,57627.0,0.4721505]
[1725262883097,0.1,57632.0,57631.0,0.121462]
[1725262883426,0.15159826,57634.0,57631.0,0.121462]
[1725262883690,0.1,57634.0,57631.0,0.121462]
[1725262883933,0.02722811,57632.0,57631.0,0.121462]
[1725262884666,0.02722811,57632.0,57631.0,0.60731]
[1725262884904,0.02722811,57632.0,57631.0,1.03296304]
[1725262885142,0.02722811,57632.0,57631.0,0.78656901]
[1725262886174,0.02722811,57632.0,57631.0,0.524386]
[1725262886920,0.000816,57637.0,57634.0,0.121454]
[1725262887418,0.000816,57637.0,57635.0,0.121453]
[1725262887665,0.000816,57637.0,57632.0,0.242917]
[1725262887666,0.000816,57637.0,57636.0,0.1249207]
[1725262887912,0.000816,57637.0,57633.0,0.242914]
[1725262888403,0.000816,57637.0,57635.0,0.121453]
[1725262888647,0.000816,57637.0,57636.0,0.00346969]
[1725262888876,0.000816,57637.0,57636.0,0.1900253]
[1725262889389,0.000816,57637.0,57636.0,0.4329283]
[1725262889646,0.000816,57637.0,57636.0,0.6758313]
[1725262889886,0.000816,57637.0,57636.0,0.4329283]
[1725262890132,0.000816,57637.0,57636.0,0.42945861]
[1725262891305,0.02803986,57637.0,57632.0,0.0402924]
[1725262891553,0.121453,57636.0,57631.0,0.121461]
[1725262892021,0.02803986,57637.0,57632.0,0.121458]
[1725262892249,0.02803986,57637.0,57633.0,0.121458]
[1725262892706,0.02803986,57637.0,57630.0,0.242928]
[1725262892946,0.02803986,57637.0,57632.0,0.121458]
[1725262893176,0.02803986,57637.0,57633.0,0.121458]
[1725262894190,0.02803986,57637.0,57632.0,0.242918]
[1725262894427,0.02803986,57637.0,57634.0,0.121455]
[1725262896885,0.000816,57637.0,57635.0,0.121453]
[1725262897109,0.000816,57637.0,57633.0,0.0866]
[1725262897110,0.000816,57637.0,57636.0,0.121451]
[1725262897351,0.000816,57637.0,57636.0,0.193651]
[1725262899329,0.000816,57637.0,57634.0,0.121455]
[1725262900792,0.000816,57637.0,57633.0,0.0866]
[1725262901013,0.000816,57637.0,57634.0,0.121454]
[1725262901225,0.000816,57637.0,57635.0,0.121453]
[1725262901646,0.02804059,57637.0,57635.0,0.121453]
[1725262903526,0.02804059,57637.0,57633.0,0.208056]
[1725262903962,0.02804059,57637.0,57632.0,0.3443198]
[1725262903963,0.02804059,57637.0,57634.0,0.121455]
[1725262904203,0.02804059,57637.0,57626.0,0.252943]
[1725262904204,0.14135289,57635.0,57623.0,0.329357]
[1725262904467,0.14135289,57635.0,57621.0,0.0740976]
[1725262904760,0.0699,57627.0,57622.0,0.12148]
[1725262905269,0.0699,57627.0,57621.0,0.0008976]
[1725262905270,0.121475,57625.0,57621.0,0.0008976]
[1725262905536,0.12148,57623.0,57621.0,0.0008976]
[1725262905757,0.121481,57622.0,57621.0,0.0008976]
[1725262908208,0.398244,57627.0,57621.0,0.0008976]
[1725262908209,0.242952,57625.0,57621.0,0.0008976]
[1725262908457,0.121479,57623.0,57621.0,0.0008976]
[1725262909247,0.02722993,57631.0,57621.0,0.02120626]
[1725262909485,0.1,57632.0,57628.0,0.121467]
[1725262909741,0.221456,57634.0,57628.0,0.121468]
[1725262909974,0.1,57634.0,57629.0,0.24293]
[1725262910219,0.1,57634.0,57631.0,0.121461]
[1725262910463,0.1,57634.0,57633.0,0.121458]
[1725262910717,0.100816,57637.0,57632.0,0.12146]
[1725262910950,0.100816,57637.0,57632.0,0.18657068]
[1725262911171,0.0272265,57634.0,57632.0,0.18657068]
[1725262912088,0.0272265,57634.0,57630.0,0.121462]
[1725262912342,0.1,57635.0,57630.0,0.121462]
[1725262912575,0.1,57635.0,57631.0,0.121462]
[1725262913249,0.1,57635.0,57632.0,0.121459]
[1725262913467,0.122266,57637.0,57632.0,0.121459]
[1725262913739,0.1,57636.0,57632.0,0.121459]
[1725262913969,0.121457,57634.0,57628.0,0.121467]
[1725262914209,0.1,57633.0,57628.0,0.121467]
[1725262914685,0.221459,57633.0,57628.0,0.157908]
[1725262914917,0.221459,57633.0,57628.0,0.036441]
[1725262915150,0.1,57633.0,57629.0,0.121466]